lending/lending_fUSD_20260110
["ID","MTS","AMOUNT","RATE_DAILY","PERIOD"]
[401172339,1768013442914,-150.0,0.0001665,2]
[401172340,1768013442923,-150.0,0.0001665,2]
[401172341,1768013442932,-150.0,0.00016656,2]
[401172342,1768013442941,-150.0,0.00016656,2]
[401172343,1768013442950,-150.0,0.00016657,2]
[401172344,1768013442959,-150.0,0.00016667,2]
[401172345,1768013442967,-150.0,0.00016669,2]
[401172346,1768013442976,-150.0,0.0001667,2]
[401172347,1768013442985,-150.0,0.00016671,2]
[401172348,1768013442994,-150.0,0.00016678,2]
[401172349,1768013443004,-150.0,0.00016682,2]
[401172350,1768013443013,-150.0,0.00016684,2]
[401172351,1768013443022,-150.0,0.00016687,2]
[401172352,1768013443031,-150.0,0.00016689,2]
[401172353,1768013443040,-150.0,0.00016691,2]
[401172354,1768013443048,-150.0,0.00016698,2]
[401172355,1768013443057,-150.0,0.00016701,2]
[401172356,1768013443066,-150.0,0.00016706,2]
[401172357,1768013443075,-150.0,0.00016707,2]
[401172358,1768013443084,-150.0,0.0001671,2]
[401172359,1768013443093,-150.0,0.00016711,2]
[401172360,1768013443102,-150.0,0.00016711,2]
[401172361,1768013443110,-150.0,0.00016714,2]
[401172362,1768013443119,-150.0,0.00016714,2]
[401172363,1768013443128,-150.0,0.00016724,2]
[401172364,1768013443137,-150.0,0.00016725,2]
[401172365,1768013443146,-150.0,0.00016726,2]
[401172366,1768013443155,-150.0,0.00016732,2]
[401172367,1768013443164,-150.0,0.00016732,2]
[401172369,1768013443173,-150.0,0.00016733,2]
[401172370,1768013443182,-150.0,0.00016737,2]
[401172371,1768013443190,-150.0,0.0001674,2]
[401172372,1768013443199,-150.0,0.00016744,2]
[401172373,1768013443208,-150.0,0.00016747,2]
[401172374,1768013443217,-331.7762129,0.0001675,2]
[401172375,1768013443226,-150.0,0.00016752,2]
[401172376,1768013443235,-150.0,0.00016754,2]
[401172377,1768013443244,-150.0,0.00016756,2]
[401172378,1768013443252,-150.0,0.00016758,2]
[401172379,1768013443261,-150.0,0.00016762,2]
[401172380,1768013443271,-150.0,0.00016764,2]
[401172381,1768013443281,-150.0,0.0001677,2]
[401172382,1768013443289,-150.0,0.00016773,2]
[401172383,1768013443298,-1000.0,0.00016774,2]
[401172384,1768013443307,-150.0,0.00016778,2]
[401172385,1768013443315,-150.0,0.00016779,2]
[401172386,1768013443324,-150.0,0.00016781,2]
[401172387,1768013443333,-150.0,0.00016782,2]
[401172388,1768013443342,-150.0,0.00016783,2]
[401172389,1768013443351,-150.0,0.00016791,2]
[401172390,1768013443359,-150.0,0.00016792,2]
[401172391,1768013443368,-150.0,0.00016793,2]
[401172392,1768013443377,-150.0,0.000168,2]
[401172393,1768013443386,-150.0,0.000168,2]
[401172394,1768013443395,-150.0,0.00016808,2]
[401172395,1768013443405,-150.0,0.00016809,2]
[401172396,1768013443414,-150.0,0.00016814,2]
[401172397,1768013443423,-150.0,0.00016815,2]
[401172398,1768013443432,-150.0,0.00016818,2]
[401172399,1768013443442,-150.0,0.00016819,2]
[401172400,1768013443451,-1000.0,0.00016821,2]
[401172401,1768013443460,-150.0,0.00016822,2]
[401172402,1768013443468,-179.14,0.00016826,2]
[401172403,1768013443477,-171.4,0.00016826,2]
[401172404,1768013443487,-179.14,0.00016826,2]
[401172405,1768013443496,-171.45,0.00016826,2]
[401172406,1768013443506,-171.4,0.00016826,2]
[401172407,1768013443515,-171.4,0.00016826,2]
[401172408,1768013443524,-150.0,0.0001683,2]
[401172409,1768013443537,-150.0,0.00016834,2]
[401172410,1768013443546,-150.0,0.00016834,2]
[401172411,1768013443555,-150.0,0.00016837,2]
[401172412,1768013443565,-150.0,0.00016837,2]
[401172413,1768013443574,-150.0,0.00016838,2]
[401172414,1768013443584,-150.0,0.00016843,2]
[401172415,1768013443593,-150.0,0.00016843,2]
[401172416,1768013443603,-150.0,0.00016844,2]
[401172417,1768013443612,-150.0,0.00016845,2]
[401172418,1768013443621,-150.0,0.00016855,2]
[401172419,1768013443631,-882.32936576,0.00016856,2]
[401172420,1768013443640,-1000.0,0.00016856,2]
[401172421,1768013443650,-150.0,0.00016856,2]
[401172422,1768013443659,-150.0,0.00016859,2]
[401172423,1768013443668,-150.0,0.00016861,2]
[401172424,1768013443677,-150.0,0.00016865,2]
[401172425,1768013443687,-150.0,0.00016867,2]
[401172426,1768013443696,-150.0,0.00016872,2]
[401172427,1768013443705,-150.0,0.00016875,2]
[401172428,1768013443714,-150.0,0.00016875,2]
[401172429,1768013443723,-150.0,0.00016875,2]
[401172430,1768013443732,-1000.0,0.00016875,2]
[401172431,1768013443741,-150.0,0.00016884,2]
[401172432,1768013443750,-150.0,0.00016885,2]
[401172433,1768013443759,-150.0,0.00016889,2]
[401172434,1768013443768,-150.0,0.00016892,2]
[401172435,1768013443777,-150.0,0.00016894,2]
[401172436,1768013443786,-150.0,0.00016895,2]
[401172437,1768013443795,-150.0,0.00016899,2]
[401172438,1768013443804,-150.0,0.00016906,2]
[401172439,1768013443814,-150.0,0.00016907,2]
[401172440,1768013443822,-161.89,0.00016908,2]
[401172441,1768013443831,-150.0,0.0001691,2]
[401172442,1768013443840,-150.0,0.00016911,2]
[401172443,1768013443850,-150.0,0.00016912,2]
[401172444,1768013443859,-150.0,0.00016916,2]
[401172445,1768013443868,-150.0,0.0001692,2]
[401172446,1768013443877,-150.0,0.0001692,2]
[401172447,1768013443886,-150.0,0.0001692,2]
[401172448,1768013443895,-150.0,0.0001692,2]
[401172449,1768013443903,-1000.0,0.00016925,2]
[401172450,1768013443912,-150.0,0.00016925,2]
[401172451,1768013443921,-150.0,0.00016929,2]
[401172452,1768013443932,-150.0,0.00016931,2]
[401172453,1768013443941,-150.0,0.00016933,2]
[401172454,1768013443950,-150.0,0.00016935,2]
[401172455,1768013443959,-150.0,0.00016936,2]
[401172456,1768013443968,-10000.0,0.00016941,2]
[401172457,1768013443977,-150.0,0.00016948,2]
[401172458,1768013443987,-150.0,0.0001695,2]
[401172459,1768013443996,-150.0,0.00016952,2]
[401172460,1768013444006,-150.0,0.00016952,2]
[401172461,1768013444016,-150.0,0.00016956,2]
[401172462,1768013444025,-150.0,0.00016957,2]
[401172463,1768013444034,-150.0,0.00016961,2]
[401172464,1768013444043,-150.0,0.00016969,2]
[401172465,1768013444052,-150.0,0.00016971,2]
[401172466,1768013444061,-150.0,0.00016971,2]
[401172467,1768013444071,-150.0,0.00016975,2]
[401172468,1768013444080,-150.0,0.00016975,2]
[401172469,1768013444089,-492.0,0.00016976,2]
[401172470,1768013444098,-150.0,0.00016977,2]
[401172471,1768013444107,-150.0,0.00016978,2]
[401172472,1768013444116,-150.0,0.00016979,2]
[401172473,1768013444125,-150.0,0.00016986,2]
[401172474,1768013444134,-600.0,0.00016986,2]
[401172475,1768013444144,-150.0,0.00016987,2]
[401172476,1768013444153,-150.0,0.00016997,2]
[401172477,1768013444162,-150.0,0.00016998,2]
[401172478,1768013444171,-527.16772391,0.00016999,2]
[401172479,1768013444180,-150.0,0.00017,2]
[401172480,1768013444189,-377.61,0.00017,2]
[401172481,1768013444197,-250.0,0.00017,2]
[401172482,1768013444206,-210.20353926,0.00017,2]
[401172483,1768013444216,-150.0,0.00017003,2]
[401172484,1768013444226,-150.0,0.00017006,2]
[401172485,1768013444236,-150.0,0.00017006,2]
[401172486,1768013444245,-150.0,0.0001701,2]
[401172487,1768013444254,-150.0,0.00017011,2]
[401172488,1768013444263,-150.0,0.00017018,2]
[401172489,1768013444273,-150.0,0.0001702,2]
[401172490,1768013444283,-150.0,0.00017022,2]
[401172491,1768013444292,-150.0,0.00017025,2]
[401172492,1768013444301,-150.0,0.00017031,2]
[401172493,1768013444310,-150.0,0.00017033,2]
[401172494,1768013444320,-150.0,0.00017036,2]
[401172495,1768013444329,-150.0,0.00017037,2]
[401172496,1768013444337,-150.0,0.00017039,2]
[401172497,1768013444347,-965.82,0.00017041,2]
[401172498,1768013444356,-1323.4,0.00017041,2]
[401172499,1768013444366,-150.0,0.00017043,2]
[401172500,1768013444375,-150.0,0.00017044,2]
[401172501,1768013444385,-150.0,0.00017044,2]
[401172502,1768013444394,-150.0,0.00017058,2]
[401172503,1768013444403,-150.0,0.00017059,2]
[401172504,1768013444412,-150.0,0.0001706,2]
[401172505,1768013444421,-150.0,0.00017062,2]
[401172506,1768013444431,-150.0,0.00017063,2]
[401172507,1768013444440,-150.0,0.00017066,2]
[401172508,1768013444449,-150.0,0.00017067,2]
[401172509,1768013444458,-150.0,0.0001708,2]
[401172510,1768013444468,-150.0,0.00017081,2]
[401172511,1768013444477,-150.0,0.00017086,2]
[401172512,1768013444486,-150.0,0.00017087,2]
[401172513,1768013444495,-150.0,0.00017087,2]
[401172514,1768013444504,-150.0,0.00017089,2]
[401172515,1768013444514,-150.0,0.00017089,2]
[401172516,1768013444523,-290.47234924,0.00017099,2]
[401172517,1768013444532,-250.0,0.00017099,2]
[401172518,1768013444541,-400.56648216,0.00017099,2]
[401172519,1768013444550,-250.0,0.00017099,2]
[401172520,1768013444559,-250.0,0.00017099,2]
[401172521,1768013444568,-250.0,0.00017099,2]
[401172522,1768013444577,-805.55508344,0.00017099,2]
[401172523,1768013444586,-250.0,0.00017099,2]
[401172524,1768013444595,-250.0,0.00017099,2]
[401172525,1768013444604,-250.0,0.00017099,2]
[401172526,1768013444613,-500.0,0.00017099,2]
[401172527,1768013444622,-250.0,0.00017099,2]
[401172528,1768013444631,-500.0,0.00017099,2]
[401172529,1768013444639,-250.0,0.00017099,2]
[401172530,1768013444648,-500.0,0.00017099,2]
[401172531,1768013444657,-250.0,0.00017099,2]
[401172532,1768013444666,-500.0,0.00017099,2]
[401172533,1768013444676,-250.0,0.00017099,2]
[401172534,1768013444685,-500.0,0.00017099,2]
[401172535,1768013444694,-250.0,0.00017099,2]
[401172536,1768013444703,-500.0,0.00017099,2]
[401172537,1768013444711,-500.0,0.00017099,2]
[401172538,1768013444720,-1000.0,0.00017099,2]
[401172539,1768013444729,-500.0,0.00017099,2]
[401172540,1768013444738,-1000.0,0.00017099,2]
[401172541,1768013444747,-500.0,0.00017099,2]
[401172542,1768013444756,-1000.0,0.00017099,2]
[401172543,1768013444765,-500.0,0.00017099,2]
[401172544,1768013444773,-1000.0,0.00017099,2]
[401172545,1768013444782,-322.6107,0.00017099,2]
[401172546,1768013444791,-500.0,0.00017099,2]
[401172547,1768013444800,-1000.0,0.00017099,2]
[401172548,1768013444809,-500.0,0.00017099,2]
[401172549,1768013444818,-1000.0,0.00017099,2]
[401172550,1768013444828,-1000.0,0.00017099,2]
[401172551,1768013444837,-1000.0,0.00017099,2]
[401172552,1768013444846,-1000.0,0.00017099,2]
[401172553,1768013444855,-553.64373807,0.00017099,2]
[401172554,1768013444864,-1000.0,0.00017099,2]
[401172555,1768013444873,-2000.0,0.00017099,2]
[401172556,1768013444882,-1000.0,0.00017099,2]
[401172557,1768013444891,-2000.0,0.00017099,2]
[401172558,1768013444900,-1000.0,0.00017099,2]
[401172559,1768013444909,-2000.0,0.00017099,2]
[401172560,1768013444918,-2000.0,0.00017099,2]
[401172561,1768013444927,-2000.0,0.00017099,2]
[401172562,1768013444936,-2000.0,0.00017099,2]
[401172563,1768013444945,-2000.0,0.00017099,2]
[401172564,1768013444954,-2000.0,0.00017099,2]
[401172565,1768013444964,-525.94323817,0.00017099,2]
[401172566,1768013444973,-500.0,0.00017099,2]
[401172567,1768013444982,-500.0,0.00017099,2]
[401172568,1768013444991,-500.0,0.00017099,2]
[401172569,1768013445000,-500.0,0.00017099,2]
[401172570,1768013445010,-500.0,0.00017099,2]
[401172571,1768013445019,-500.0,0.00017099,2]
[401172572,1768013445028,-500.0,0.00017099,2]
[401172573,1768013445038,-500.0,0.00017099,2]
[401172574,1768013445047,-500.0,0.00017099,2]
[401172575,1768013445057,-500.0,0.00017099,2]
[401172576,1768013445072,-500.0,0.00017099,2]
[401172577,1768013445081,-500.0,0.00017099,2]
[401172578,1768013445091,-150.0,0.000171,2]
[401172579,1768013445100,-150.0,0.000171,2]
[401172580,1768013445340,-150.0,0.000171,2]
[401172581,1768013445350,-150.0,0.000171,2]
[401172582,1768013445360,-150.0,0.000171,2]
[401172583,1768013445369,-150.0,0.000171,2]
[401172584,1768013445379,-150.0,0.000171,2]
[401172585,1768013445388,-150.0,0.000171,2]
[401172586,1768013445396,-150.0,0.000171,2]
[401172587,1768013445406,-1069.8949683,0.000171,2]
[401172588,1768013445416,-150.0,0.00017111,2]
[401172589,1768013445425,-150.0,0.00017111,2]
[401172590,1768013445434,-1000.0,0.00017112,2]
[401172591,1768013445444,-150.0,0.00017113,2]
[401172592,1768013445454,-150.0,0.00017113,2]
[401172593,1768013445463,-150.0,0.00017114,2]
[401172594,1768013445473,-150.0,0.00017119,2]
[401172595,1768013445482,-150.0,0.0001712,2]
[401172596,1768013445492,-527.16772388,0.00017128,2]
[401172597,1768013445502,-150.0,0.00017133,2]
[401172598,1768013445512,-150.0,0.00017134,2]
[401172599,1768013445522,-150.0,0.00017137,2]
[401172600,1768013445534,-150.0,0.00017138,2]
[401172601,1768013445544,-150.0,0.0001714,2]
[401172602,1768013445554,-150.0,0.00017141,2]
[401172603,1768013445563,-150.0,0.00017142,2]
[401172604,1768013445573,-150.0,0.00017156,2]
[401172605,1768013445582,-150.0,0.00017156,2]
[401172606,1768013445592,-150.0,0.00017157,2]
[401172607,1768013445601,-150.0,0.00017161,2]
[401172608,1768013445611,-150.0,0.00017163,2]
[401172609,1768013445620,-150.0,0.00017164,2]
[401172610,1768013445630,-150.0,0.00017167,2]
[401172611,1768013445640,-150.0,0.00017169,2]
[401172612,1768013445649,-150.0,0.00017175,2]
[401172613,1768013445659,-150.0,0.00017178,2]
[401172614,1768013445668,-569.44,0.00017178,2]
[401172615,1768013445677,-1225.6,0.00017178,2]
[401172616,1768013445687,-150.0,0.00017178,2]
[401172617,1768013445696,-150.0,0.00017178,2]
[401172618,1768013445706,-1225.6,0.00017178,2]
[401172619,1768013445715,-179.19,0.00017178,2]
[401172620,1768013445726,-346.83,0.00017178,2]
[401172621,1768013445735,-150.0,0.00017178,2]
[401172622,1768013445744,-1225.6,0.00017178,2]
[401172623,1768013445754,-1112.8,0.00017178,2]
[401172624,1768013445764,-150.0,0.00017178,2]
[401172625,1768013445773,-150.0,0.00017178,2]
[401172626,1768013445783,-179.19,0.00017178,2]
[401172627,1768013445792,-1225.6,0.00017178,2]
[401172628,1768013445801,-150.0,0.00017178,2]
[401172629,1768013445811,-179.19,0.00017178,2]
[401172630,1768013445820,-1225.6,0.00017178,2]
[401172631,1768013445829,-150.0,0.00017178,2]
[401172632,1768013445838,-179.19,0.00017178,2]
[401172633,1768013445847,-150.0,0.00017178,2]
[401172634,1768013445857,-150.0,0.0001718,2]
[401172635,1768013445867,-205.0,0.00017182,2]
[401172636,1768013445876,-150.0,0.00017182,2]
[401172637,1768013445885,-1000.0,0.00017182,2]
[401172638,1768013445895,-150.0,0.00017189,2]
[401172639,1768013445904,-150.0,0.0001719,2]
[401172640,1768013445913,-150.0,0.00017194,2]
[401172641,1768013445923,-150.0,0.00017194,2]
[401172642,1768013445932,-205.0,0.00017195,2]
[401172643,1768013445942,-150.0,0.00017197,2]
[401172644,1768013445952,-150.0,0.000172,2]
[401172645,1768013445962,-150.0,0.00017202,2]
[401172646,1768013445972,-150.0,0.00017203,2]
[401172647,1768013445992,-366.0,0.00017209,2]
[401172648,1768013446004,-150.0,0.00017212,2]
[401172649,1768013446014,-150.0,0.00017214,2]
[401172650,1768013446033,-150.0,0.00017221,2]
[401172651,1768013446049,-150.0,0.00017222,2]
[401172652,1768013446058,-150.0,0.00017223,2]
[401172655,1768013446068,-150.0,0.00017225,2]
[401172657,1768013446078,-150.0,0.00017225,2]
[401172659,1768013446087,-150.0,0.00017229,2]
[401172660,1768013446096,-150.0,0.00017229,2]
[401172661,1768013446105,-150.0,0.00017231,2]
[401172662,1768013446115,-150.0,0.00017239,2]
[401172663,1768013446124,-150.0,0.00017243,2]
[401172664,1768013446134,-205.0,0.00017243,2]
[401172666,1768013446143,-150.0,0.00017244,2]
[401172667,1768013446154,-150.0,0.00017248,2]
[401172668,1768013446173,-150.0,0.00017248,2]
[401172669,1768013446183,-150.0,0.0001725,2]
[401172670,1768013446192,-150.0,0.00017252,2]
[401172671,1768013446202,-527.16772388,0.00017256,2]
[401172672,1768013446211,-205.0,0.00017262,2]
[401172673,1768013446221,-150.0,0.00017264,2]
[401172674,1768013446230,-150.0,0.00017265,2]
[401172675,1768013446240,-150.0,0.00017267,2]
[401172676,1768013446249,-150.0,0.00017269,2]
[401172677,1768013446260,-150.0,0.00017271,2]
[401172678,1768013446270,-150.0,0.00017275,2]
[401172679,1768013446280,-150.0,0.0001728,2]
[401172680,1768013446290,-150.0,0.0001728,2]
[401172681,1768013446300,-150.0,0.0001728,2]
[401172682,1768013446311,-150.0,0.0001728,2]
[401172683,1768013446321,-150.0,0.00017284,2]
[401172684,1768013446330,-150.0,0.00017288,2]
[401172685,1768013446340,-150.0,0.00017289,2]
[401172686,1768013446350,-150.0,0.0001729,2]
[401172687,1768013446359,-159.16121496,0.00017291,2]
[401172688,1768013446368,-150.0,0.00017293,2]
[401172689,1768013446379,-150.0,0.00017294,2]
[401172690,1768013446390,-150.0,0.00017301,2]
[401172691,1768013446399,-150.0,0.00017305,2]
[401172692,1768013446409,-150.0,0.00017306,2]
[401172693,1768013446419,-150.0,0.00017308,2]
[401172694,1768013446429,-150.0,0.00017311,2]
[401172695,1768013446438,-150.0,0.00017315,2]
[401172696,1768013446448,-150.0,0.00017316,2]
[401172697,1768013446457,-150.0,0.00017325,2]
[401172698,1768013446467,-150.0,0.00017325,2]
[401172699,1768013446476,-150.0,0.00017325,2]
[401172700,1768013446485,-331.7762129,0.00017325,2]
[401172701,1768013446496,-150.0,0.00017328,2]
[401172702,1768013446506,-150.0,0.00017333,2]
[401172703,1768013446516,-150.0,0.00017335,2]
[401172704,1768013446526,-150.0,0.00017339,2]
[401172705,1768013446539,-150.0,0.00017341,2]
[401172706,1768013446549,-150.0,0.00017344,2]
[401172707,1768013446559,-150.0,0.00017345,2]
[401172708,1768013446569,-150.0,0.00017355,2]
[401172709,1768013446580,-150.0,0.00017356,2]
[401172710,1768013446590,-150.0,0.00017357,2]
[401172711,1768013446600,-150.0,0.00017357,2]
[401172712,1768013446610,-150.0,0.00017362,2]
[401172713,1768013446620,-150.0,0.00017362,2]
[401172714,1768013446630,-150.0,0.00017363,2]
[401172715,1768013446640,-150.0,0.00017366,2]
[401172716,1768013446649,-150.0,0.00017366,2]
[401172717,1768013446659,-1500.0,0.00017368,2]
[401172718,1768013446669,-150.0,0.0001737,2]
[401172719,1768013446678,-150.0,0.00017378,2]
[401172720,1768013446687,-150.0,0.00017381,2]
[401172721,1768013446697,-150.0,0.00017382,2]
[401172722,1768013446706,-150.0,0.00017385,2]
[401172723,1768013446716,-527.16772388,0.00017385,2]
[401172724,1768013446726,-150.0,0.00017386,2]
[401172725,1768013446735,-150.0,0.00017391,2]
[401172726,1768013446745,-150.0,0.00017392,2]
[401172727,1768013446754,-150.0,0.000174,2]
[401172728,1768013446764,-150.0,0.000174,2]
[401172729,1768013446773,-150.0,0.00017407,2]
[401172730,1768013446783,-150.0,0.00017408,2]
[401172731,1768013446792,-150.0,0.00017409,2]
[401172732,1768013446802,-150.0,0.00017417,2]
[401172733,1768013446811,-150.0,0.00017418,2]
[401172734,1768013446820,-150.0,0.00017419,2]
[401172735,1768013446830,-150.0,0.00017421,2]
[401172736,1768013446840,-150.0,0.00017422,2]
[401172737,1768013446850,-150.0,0.00017427,2]
[401172738,1768013446859,-150.0,0.0001743,2]
[401172739,1768013446868,-587.0,0.00017434,2]
[401172740,1768013446878,-150.0,0.00017436,2]
[401172741,1768013446887,-150.0,0.00017437,2]
[401172742,1768013446897,-150.0,0.00017442,2]
[401172743,1768013446907,-150.0,0.00017444,2]
[401172744,1768013446916,-150.0,0.00017446,2]
[401172745,1768013446926,-150.0,0.00017448,2]
[401172746,1768013446935,-150.0,0.00017452,2]
[401172747,1768013446944,-150.0,0.00017452,2]
[401172748,1768013446954,-150.0,0.00017452,2]
[401172749,1768013446963,-150.0,0.00017453,2]
[401172750,1768013446972,-150.0,0.00017456,2]
[401172751,1768013446981,-500.0,0.00017459,2]
[401172752,1768013446991,-150.0,0.0001746,2]
[401172753,1768013447000,-21606.0,0.0001746,2]
[401172754,1768013447011,-1000.0,0.00017461,2]
[401172755,1768013447020,-150.0,0.00017463,2]
[401172756,1768013447030,-150.0,0.00017467,2]
[401172757,1768013447039,-150.0,0.00017468,2]
[401172758,1768013447049,-150.0,0.00017468,2]
[401172759,1768013447058,-150.0,0.00017474,2]
[401172760,1768013447067,-162.07,0.00017474,2]
[401172761,1768013447076,-150.0,0.00017475,2]
[401172762,1768013447088,-150.0,0.00017476,2]
[401172763,1768013447097,-150.0,0.00017486,2]
[401172764,1768013447107,-150.0,0.00017486,2]
[401172765,1768013447116,-150.0,0.00017489,2]
[401172766,1768013447126,-150.0,0.00017489,2]
[401172767,1768013447136,-150.0,0.0001749,2]
[401172768,1768013447145,-150.0,0.00017493,2]
[401172769,1768013447155,-2351.0,0.00017493,2]
[401172770,1768013447164,-150.0,0.00017494,2]
[401172771,1768013447174,-150.0,0.00017499,2]
[401172772,1768013447184,-150.0,0.00017502,2]
[401172773,1768013447192,-150.0,0.00017509,2]
[401172774,1768013447202,-150.0,0.00017511,2]
[401172775,1768013447211,-150.0,0.00017513,2]
[401172776,1768013447221,-150.0,0.00017516,2]
[401172777,1768013447230,-150.0,0.00017518,2]
[401172778,1768013447239,-150.0,0.00017522,2]
[401172779,1768013447249,-150.0,0.00017529,2]
[401172780,1768013447258,-150.0,0.0001753,2]
[401172781,1768013447267,-150.0,0.00017531,2]
[401172782,1768013447277,-150.0,0.00017533,2]
[401172783,1768013447286,-665.24,0.00017534,2]
[401172784,1768013447295,-150.0,0.00017543,2]
[401172785,1768013447305,-150.0,0.00017544,2]
[401172786,1768013447314,-150.0,0.00017544,2]
[401172787,1768013447324,-150.0,0.0001755,2]
[401172788,1768013447333,-150.0,0.0001755,2]
[401172789,1768013447343,-150.0,0.0001755,2]
[401172790,1768013447352,-150.0,0.0001755,2]
[401172791,1768013447362,-150.0,0.0001755,2]
[401172792,1768013447371,-167.60889231,0.00017552,2]
[401172793,1768013447381,-150.0,0.00017556,2]
[401172794,1768013447390,-150.0,0.00017557,2]
[401172795,1768013447399,-150.0,0.00017567,2]
[401172796,1768013447409,-150.0,0.00017569,2]
[401172797,1768013447419,-150.0,0.00017569,2]
[401172798,1768013447428,-150.0,0.0001757,2]
[401172799,1768013447438,-150.0,0.0001757,2]
[401172800,1768013447447,-150.0,0.00017578,2]
[401172801,1768013447456,-150.0,0.00017585,2]
[401172802,1768013447466,-150.0,0.00017587,2]
[401172803,1768013447475,-150.0,0.0001759,2]
[401172804,1768013447484,-150.0,0.00017591,2]
[401172805,1768013447494,-150.0,0.00017594,2]
[401172806,1768013447504,-150.0,0.00017597,2]
[401172807,1768013447515,-150.0,0.000176,2]
[401172808,1768013447524,-150.0,0.00017606,2]
[401172809,1768013447535,-150.0,0.00017611,2]
[401172810,1768013447544,-150.0,0.00017612,2]
[401172811,1768013447553,-150.0,0.00017613,2]
[401172812,1768013447568,-150.0,0.00017614,2]
[401172813,1768013447585,-150.0,0.00017614,2]
[401172814,1768013447598,-150.0,0.0001762,2]
[401172815,1768013447611,-150.0,0.00017622,2]
[401172816,1768013447624,-150.0,0.00017624,2]
[401172817,1768013447639,-150.0,0.00017625,2]
[401172818,1768013447652,-150.0,0.00017632,2]
[401172819,1768013447666,-150.0,0.00017635,2]
[401172820,1768013447679,-150.0,0.0001764,2]
[401172821,1768013447690,-150.0,0.0001764,2]
[401172822,1768013447704,-150.0,0.0001764,2]
[401172823,1768013447717,-150.0,0.0001764,2]
[401172824,1768013447732,-21606.0,0.0001764,2]
[401172825,1768013447746,-9208.8381957,0.0001764,2]
[401172826,1768013447761,-150.0,0.00017644,2]
[401172827,1768013447776,-150.0,0.00017644,2]
[401172828,1768013447791,-150.0,0.00017645,2]
[401172829,1768013447805,-574.12855637,0.00017647,2]
[401172830,1768013447818,-166.35,0.00017648,2]
[401172831,1768013447831,-466.84,0.00017648,2]
[401172832,1768013447843,-466.84,0.00017648,2]
[401172833,1768013447858,-466.84,0.00017648,2]
[401172834,1768013447878,-466.84,0.00017648,2]
[401172835,1768013447898,-477.51,0.00017648,2]
[401172836,1768013447913,-466.84,0.00017648,2]
[401172837,1768013447927,-150.0,0.00017651,2]
[401172838,1768013447942,-150.0,0.00017652,2]
[401172839,1768013447960,-150.0,0.00017658,2]
[401172840,1768013447972,-150.0,0.00017662,2]
[401172841,1768013447983,-150.0,0.00017667,2]
[401172842,1768013447996,-150.0,0.00017668,2]
[401172843,1768013448014,-150.0,0.0001767,2]
[401172844,1768013448030,-150.0,0.00017673,2]